{"text_format":"1","workbook":"xlsx","n_sheets":10,"sheets":["Instructions","Submission","Certification FP","Certification AC","Certification FS","Fuel Supplier CR","Configuration","Fuel Provider CR","Approved Contributor CR","Track Changes"],"not_rendered":{"charts":0,"images":1,"macros":1,"external_links":2,"defined_names":3,"comments":3,"pivot_tables":0},"unopened":[],"bounds":{"document_bytes":16777216,"sheet_cells":100000,"rows_first":2000,"rows_last":500,"rows_between":2000,"halvings":0,"cell_chars":16384,"cell_head_chars":4096},"cells_cut":0,"cells_raw":0,"read":"whole","date_system":"1900"}

{"sheet":"Instructions","index":0,"n_rows":36,"n_cols":2,"rows_kept":36,"cut":false,"hidden":false,"merged":[[1,0,1,2],[0,0,0,2]]}
[]
["RENEWABLE FUELS STANDARD REGULATION \nCONSOLIDATED COMPLIANCE REPORT FORM v25.0"]
["Introduction"]
[]
[null,"The completion of this form is a requirement for any active fuel supplier, approved contributor or renewable fuel provider in the Alberta market under the Renewable Fuels Standard Regulation."]
["SGER Consolidated Form v3.0 (2012)"]
["Legal Authority"]
[]
[null,"The requirements described above are administered under the authority of the Emissions Management and Climate Resilience Act and the Renewable Fuels Standard Regulation."]
[]
["Completion Instructions"]
[]
[]
["1.","Complete the Submission tab by selecting the report type and compliance year."]
["2.","Complete the Certification tab and the Compliance Report for the selected type (as per the instructions on the form)."]
["3.","More information about specific fields is provided as pop-up comments. To view comments, hover the mouse cursor over each cell with a comment or select the appropriate option in the menu to display all comments."]
["4.","Complete all applicable sections of this form. Questions or comments can be submitted to fuel.ghg@gov.ab.ca"]
["5.","To print the report or portions thereof, first select multiple tabs by navigating to the first tab to be printed and hold down \"shift\" whilst clicking on the tabs to be printed. Next, select \"Print\" from the \"File\" menu above. Caution: When multiple tabs are selected, making a change to one tab can affect information in all selected tabs.                                                               Please note that completed reports must be submitted electronically to Alberta Environment and Protected Areas (EPA). Hard copies must not be submitted."]
["6.","Print the Certification tab and have the authorized signing officer sign on behalf of the Fuel Supplier/Fuel Provider/ Approved Contributor."]
["7.","Submit the required documents (this spreadsheet form and the signed form in PDF format) and any other supporting documentation to Alberta Environment and Protected Areas."]
[]
[]
[null,"Note: In accordance with the Electronic Transactions Act, signed documents may be submitted either electronically or in hard copy."]
[]
["Submission Address"]
[]
[null,"Submit electronic documents to:"]
[null,"fuel.ghg@gov.ab.ca"]
[]
[null,"Submit paper hard copies or electronic storage media to:"]
[null,"Executive Director, Climate Regulation and Carbon Markets"]
[null,"Alberta Environment and Protected Areas"]
[null,"12th Floor, Baker Center"]
[null,"10025 - 106 Street"]
[null,"Edmonton, AB"]
[null,"T5J 1G4"]

{"sheet":"Submission","index":1,"n_rows":20,"n_cols":15,"rows_kept":20,"cut":false,"hidden":false,"merged":[[4,3,4,5]]}
["Submission Information"]
[]
[null,"Report Type"]
[]
[null,null,"Report Type:",null,null,null,null,null,"Report Type",{"$f":"MATCH(D5,M5:M7,0)","v":{"$error":"#N/A"}},null,"Report Type Options","Fuel Supplier Compliance Report",null,"Fuel Supplier"]
[null,null,null,null,null,null,null,null,null,{"$f":"CHOOSE(J5,O5,O6,O7)","v":{"$error":"#N/A"}},null,null,"Fuel Provider Compliance Report",null,"Fuel Provider"]
[null,"Reporting Period",null,null,null,null,null,null,null,null,null,null,"Approved Contributor Compliance Report",null,"Contributor"]
[]
[null,null,"Compliance Year:",null,null,null,null,null,"Baseline Period",2022]
[null,null,null,null,null,null,null,null,null,2023]
[null,null,null,null,null,null,null,null,null,2024]
[null,null,null,null,null,null,null,null,null,2025]
[null,null,null,null,null,null,null,null,null,2026]
[null,null,null,null,null,null,null,null,null,2027]
[null,null,null,null,null,null,null,null,null,2028]
[null,null,null,null,null,null,null,null,null,2029]
[null,null,null,null,null,null,null,null,null,2030]
[null,null,null,null,null,null,null,null,null,2031]
[null,null,null,null,null,null,null,null,null,2032]
[null,null,null,null,null,null,null,null,null,2033]

{"sheet":"Certification FP","index":2,"n_rows":35,"n_cols":7,"rows_kept":35,"cut":false,"hidden":true,"merged":[[10,1,10,3],[12,1,12,3],[27,1,27,3],[30,1,33,1]]}
[]
[null,{"$f":"Submission!J6 & \" Compliance Report - Certification\"","v":{"$error":"#N/A"}}]
[null,"Section 12 of the Renewable Fuels Standard Regulation"]
[null,null,null,null,null,null,"Mr."]
[null,"Section 1 - Authorized Individual information"]
[]
[null,"Compliance Period"]
[null,{"$f":"Submission!D9","v":0}]
[]
[{"$f":"\"Approved \" &Submission!J6 & \" Legal Name\"","v":{"$error":"#N/A"}},null,null,null,null,null,"Mr."]
[null,null,null,null,null,null,"Ms."]
[{"$f":"\"Approved \" &Submission!J6 & \" Physical Location\"","v":{"$error":"#N/A"}},null,null,null,null,null,"Mrs."]
[null,null,null,null,null,null,"Miss"]
["Authorized Individual's First Name",null,"Authorized Individual's Last Name"]
[]
["Telephone Number (eg. 780-123-4567 ext 8)",null,"Email address"]
[]
["Mailing Address",null,"Province/State"]
[]
["City/District/Municipality/County",null,"Country"]
[]
["Postal Code"]
[]
[]
[null,"Section 2 - Certification of Compliance Report"]
[null,"Required by Section 12(4)(c) of the Renewable Fuels Standard Regulation"]
[]
[null,{"$f":"\"I, \" & B15 & \" \" & D15 & \", hereby confirm that the information provided in this Compliance Report for \" & B11 & \" is accurate and complete to the best of my knowledge. I understand that it is my responsibility to maintain records for at least five years confirming compliance with the above requirements.\"","v":"I,  , hereby confirm that the information provided in this Compliance Report for  is accurate and complete to the best of my knowledge. I understand that it is my responsibility to maintain records for at least five years confirming compliance with the above requirements."}]
[]
[null,"Signature of the authorized individual",null,"Date (mmm dd, yyyy)"]
[]
[]
[]
[]
[null,{"$f":"\" \" & B15 & \" \" & D15 & \"'s signature\"","v":"  's signature"}]

{"sheet":"Certification AC","index":3,"n_rows":35,"n_cols":7,"rows_kept":35,"cut":false,"hidden":true,"merged":[[10,1,10,3],[12,1,12,3],[27,1,27,3],[30,1,33,1]]}
[]
[null,{"$f":" \"Approved \"&Submission!J6 & \" Compliance Report - Certification\"","v":{"$error":"#N/A"}}]
[null,"Section 11 of the Renewable Fuels Standard Regulation"]
[null,null,null,null,null,null,"Mr."]
[null,"Section 1 - Authorized Individual information"]
[]
[null,"Compliance Period"]
[null,{"$f":"Submission!D9","v":0}]
[]
[{"$f":"\"Approved \" &Submission!J6 & \" Legal Name\"","v":{"$error":"#N/A"}},null,null,null,null,null,"Mr."]
[null,null,null,null,null,null,"Ms."]
[{"$f":"\"Approved \" &Submission!J6 & \" Physical Location\"","v":{"$error":"#N/A"}},null,null,null,null,null,"Mrs."]
[null,null,null,null,null,null,"Miss"]
["Authorized Individual's First Name",null,"Authorized Individual's Last Name"]
[]
["Telephone Number (eg. 780-123-4567 ext 8)",null,"Email address"]
[]
["Mailing Address",null,"Province/State"]
[]
["City/District/Municipality/County",null,"Country"]
[]
["Postal Code"]
[]
[]
[null,"Section 2 - Certification of Compliance Report"]
[null,"Required by Section 11(4)(c) of the Renewable Fuels Standard Regulation"]
[]
[null,{"$f":"\"I, \" & B15 & \" \" & D15 & \", hereby confirm that the information provided in this Compliance Report for \" & B11 & \" is accurate and complete to the best of my knowledge. I understand that it is my responsibility to maintain records for at least five years confirming compliance with the above requirements.\"","v":"I,  , hereby confirm that the information provided in this Compliance Report for  is accurate and complete to the best of my knowledge. I understand that it is my responsibility to maintain records for at least five years confirming compliance with the above requirements."}]
[]
[null,"Signature of the authorized individual",null,"Date (mmm dd, yyyy)"]
[]
[]
[]
[]
[null,{"$f":"\" \" & B15 & \" \" & D15 & \"'s signature\"","v":"  's signature"}]

{"sheet":"Certification FS","index":4,"n_rows":42,"n_cols":8,"rows_kept":42,"cut":false,"hidden":true,"merged":[[28,1,28,3],[37,1,40,1],[31,1,31,3],[11,1,11,3],[13,1,13,3]]}
[]
[]
[null,{"$f":"Submission!J6 & \" Compliance Report - Certification\"","v":{"$error":"#N/A"}}]
[null,"Section 10 of the Renewable Fuels Standard Regulation"]
[null,null,null,null,null,null,"Mr."]
[null,"Section 1 - Authorized Individual information"]
[]
[null,"Compliance Period"]
[null,{"$f":"Submission!D9","v":0}]
[]
[{"$f":"Submission!J6 & \" Legal Name\"","v":{"$error":"#N/A"}},null,null,null,null,null,"Mr."]
[null,null,null,null,null,null,"Ms."]
[{"$f":"Submission!J6 & \" Physical Location\"","v":{"$error":"#N/A"}},null,null,null,null,null,"Mrs."]
[null,null,null,null,null,null,"Miss"]
["Authorized Individual's First Name",null,"Authorized Individual's Last Name"]
[]
["Telephone Number (eg. 780-123-4567 ext 8)",null,"Email address"]
[]
["Mailing Address",null,"Province/State"]
[]
["City/District/Municipality/County",null,"Country"]
[]
["Postal Code"]
[]
[]
[null,"Section 2 - Confirmation requirements have been met"]
[null,"Required by Section 10(4)(a) of the Renewable Fuels Standard Regulation"]
[]
[null,{"$f":"\"I, \" & B16 & \" \" & D16 & \", hereby confirm that the fuel placed by \" & B12 & \" in the Alberta market in this compliance period:\"","v":"I,  , hereby confirm that the fuel placed by  in the Alberta market in this compliance period:"}]
[]
[null,null,null,"(check the option that applies)",null,null,false,false]
[null,"the minimum renewable content requirements set out in Section 2 of the Renewable Fuels Standard Regulation, the greenhouse gas emission intensity threshold requirements set out in Section 3 of the Renewable Fuels Standard Regulation and declare that the calculations and data are accurate and complete to the best of my knowledge. I understand that it is my responsibility to maintain records for at least five years confirming compliance with the above requirements. "]
[]
[null,"Section 3 - Certification of Compliance Report"]
[null,"Required by Section 10(4)(f) of the Renewable Fuels Standard Regulation"]
[]
[null,"Signature of the authorized individual",null,"Date (mmm dd, yyyy)"]
[]
[]
[]
[]
[null,{"$f":"\" \" & B16 & \" \" & D16 & \"'s signature\"","v":"  's signature"}]

{"sheet":"Fuel Supplier CR","index":5,"n_rows":108,"n_cols":22,"rows_kept":108,"cut":false,"hidden":true,"merged":[[13,10,13,11],[14,10,14,11],[15,10,15,11],[16,10,16,11],[13,5,13,6],[15,5,15,6],[15,2,15,3],[13,2,13,3],[28,6,28,7],[29,6,29,7],[28,2,28,3],[29,2,29,3],[37,2,37,3],[38,6,38,7],[37,6,37,7],[17,5,17,6],[19,5,19,6],[38,2,38,3],[104,11,104,12],[104,8,104,9],[104,4,104,5],[104,2,104,3],[102,11,102,12],[65,8,66,12],[88,8,89,12],[102,8,102,9],[102,2,102,3],[102,4,102,5]]}
[]
[null,"Fuel Supplier Compliance Report"]
[null,"Section 10 of the Renewable Fuels Standard Regulation"]
[null,"For Compliance Period: ",null,{"$f":"Submission!D9","v":0}]
[]
[null,"Instructions: 1.","Complete the yellow cells in Sections 1-4 below."]
[null,"2.","For your information, references to the applicable sections of the Regulation are provided in the comments for each section of this form. "]
[null,"3.","Once complete, save this form as an .xlsm file (Microsoft Excel Macro-Enabled Workbook file) and submit it as indicated in the Instructions tab."]
[]
[]
[null,"Section 1- Fuel Supplier Information"]
[]
[null,null,"Date Submitted (mmm dd, yyyy)",null,null,"Legal Name of Fuel Supplier"]
[null,null,{"$f":"'Certification FS'!D38","v":"00:00:00"},null,null,{"$f":"'Certification FS'!B12","v":0}]
[null,null,null,null,null,"Contact Name"]
[]
[null,null,null,null,null,"Contact Phone Number"]
[]
[null,null,null,null,null,"Contact Email"]
[]
[null,null,null,null,null,null,null,null,null,null,null,null,null,null,null,null,null,null,null,"qualifying bio-based diesel"]
[null,null,null,null,null,null,null,null,null,null,null,null,null,null,null,null,null,null,null,"qualifying renewable alcohol"]
[null,"Section 2- Notional Transfers",null,null,null,null,null,null,null,null,null,null,null,null,null,null,null,null,null,null,null," "]
[null,"Transfers IN",null,null,null,null,null,null,null,null,null,null,null,null,null,null,null,null,null,null,"choose yes or no…"," "]
[null,"Instructions: 1.",{"$f":"\"For notional transfers of renewable fuel received on or before March 31, \" & D4+1 & \", please complete the following (insert a separate row for each transaction).\"","v":"For notional transfers of renewable fuel received on or before March 31, 1, please complete the following (insert a separate row for each transaction)."},null,null,null,null,null,null,null,null,null,null,null,null,null,null,null,null,null,"no"]
[null,"2.","Please include a copy of any transaction records for each notional transfer listed.  Supporting documentation should be compiled and labeled in numbered bundles corresponding to the row number for each transfer.",null,null,null,null,null,null,null,null,null,null,null,null,null,null,null,null,null,"yes"]
[]
[]
[null,null,"Legal name of the fuel supplier or approved contributor who made the notional transfer",null,"Address of the fuel supplier or approved contributor","Volume of renewable fuel notionally transferred (litres)","Type of renewable fuel (qualifying renewable alcohol or qualifying bio-based diesel)",null,"Date of notional transfer (mmm dd, yyyy)","Validation Reference Number","Supporting documentation submitted? (choose yes or no)"]
[null,1,null,null,null,null,"choose type…",null,null,null,"choose yes or no…"]
[]
[]
[null,"Transfers OUT"]
[null,"Instructions: 1.",{"$f":"\"For notional transfers of renewable fuel provided on or before March 31, \" & D4 +1 & \", please complete the following (insert a separate row for each transaction).\"","v":"For notional transfers of renewable fuel provided on or before March 31, 1, please complete the following (insert a separate row for each transaction)."},null,null,null,null,null,null,null,null,null,null,null,null,null,null,null,null,null,null," "]
[null,"2.","Please include a copy of any transaction records for each notional transfer listed.  Supporting documentation should be compiled and labeled in numbered bundles corresponding to the row number for each transfer."]
[]
[]
[null,null,"Legal name of the fuel supplier who received the notional transfer",null,"Address of the fuel supplier who received the notional transfer","Volume of renewable fuel notionally transferred (litres)","Type of renewable fuel (qualifying renewable alcohol or qualifying bio-based diesel)",null,"Date of notional transfer (mmm dd, yyyy)","Validation Reference Number","Supporting documentation submitted? (choose yes or no)"]
[null,1,null,null,null,null,"choose type…",null,null,null,"choose yes or no…"]
[]
[]
[]
[null,"Section 3- Blending Requirements Compliance"]
[null,"Instructions: 1.","Complete the yellow cells, as applicable, with the values for the compliance period. For your reference, definitions of variables are provided in the comments to each variable listed. ",null,null,null,null,null,null,null,null,null,null,null,null,null,null," "]
[null,null,"For more information, please refer to Sections 2(1) and 2(2) of the Renewable Fuels Standard Regulation. "]
[null,null,"Section 3a - Renewable Alcohol Data"]
[]
[]
[]
[]
[]
[]
[]
[]
[null,null,"Numerator",null,null,null,"Denominator",null,null,null,"AQa% = (Subtotal A /Subtotal B) x 100"]
[null,null,"Variable",null,"Value (litres)",null,"Variable",null,"Value (litres)"]
[null,null,"Qa",{"$f":"\"=\"","v":"="},null,null,"UBGa",{"$f":"\"=\"","v":"="},null,null,"Subtotal A",{"$f":"\"=\"","v":"="},{"$f":"E64","v":0}]
[null,null,"NTIa",{"$f":"\"=\"","v":"="},null,null,"BGa",{"$f":"\"=\"","v":"="},null,null,"Subtotal B",{"$f":"\"=\"","v":"="},{"$f":"I64","v":0}]
[null,null,"NTOa","="]
[null,null,"FCa","="]
[]
[null,null,null,null,{"$f":"E86/2","v":0}]
[]
[null,null,"Subtotal A","=",{"$f":"(E57+E58-E59+E60)","v":0},null,"Subtotal B","=",{"$f":"SUM(I57:I58)","v":0},null,"AQa%",{"$f":"\"=\"","v":"="},{"$f":"IF(M58=0,0,(M57*100)/M58)","v":0}]
[]
[]
[]
[]
[null,null,"Section 3b - Bio-based Diesel Data"]
[]
[]
[]
[]
[]
[]
[]
[]
[null,null,"Numerator",null,null,null,"Denominator",null,null,null,"AQd% = (Subtotal A /Subtotal B) x 100"]
[null,null,"Variable",null,"Value (litres)",null,"Variable",null,"Value (litres)"]
[null,null,"Qd",{"$f":"\"=\"","v":"="},null,null,"UBDd",{"$f":"\"=\"","v":"="},null,null,"Subtotal A",{"$f":"\"=\"","v":"="},{"$f":"E87","v":0}]
[null,null,"NTId","=",null,null,"BDd",{"$f":"\"=\"","v":"="},null,null,"Subtotal B",{"$f":"\"=\"","v":"="},{"$f":"I87","v":0}]
[null,null,"NTOd","="]
[null,null,"FCd","="]
[]
[null,null,null,null,{"$f":"E63/2","v":0}]
[]
[null,null,"Subtotal A","=",{"$f":"(E80+E81-E82+E83)","v":0},null,"Subtotal B","=",{"$f":"SUM(I80:I81)","v":0},null,"AQd%",{"$f":"\"=\"","v":"="},{"$f":"IF(M81=0,0,(M80*100)/M81)","v":0}]
[]
[]
[]
[null,null,null,null,null,null,null,null,null,null,null,null,null,null,null," "," ",null,null,null," "]
[]
[null,"Section 4- Greenhouse Gas Emission Threshold Compliance",null,null,null,null,null,null,null,null,null,null,null,null,null,null,null,null,null,null,null," "]
[null,"Instructions: 1.","For renewable fuel, including renewable fuel contained in renewable-blended fuel that the Fuel Supplier received and placed in the Alberta market in the compliance period, please complete the following",null,null,null,null,null,null,null,null,null,null,null,null,null,null,null,null,null,null," "]
[null,null,"(insert a separate row for each shipment received).",null,null,null,null,null,null,null,null,null,null,null,null,null,null,null,"choose type…"]
[null,"2.","For any \"other blend\" options chosen as the fuel type in the \"Type of renewable fuel\" column, please specify the percentage of renewable fuel in the blend in the \"Blend proportion\" column.",null,null,null,null,null,null,null,null,null,null,null,null,null,null,null,"100% renewable alcohol"]
[null,"3.","In the \"Renewable Fuel Provider Declaration\" column please indicate whether transaction records or other documentation from the renewable fuel provider (to confirm that the renewable fuel was produced in a manner that is consistent with ",null,null,null,null,null,null,null,null,null,null,null,null,null,null,null,"E5 blend"]
[null,null,"the procesesses and feedstocks set out in the validation referred to in the \"Validation reference number\" column) have been submitted with the report. Please compile and label the supporting documentation in numbered bundles",null,null,null,null,null,null,null,null,null,null,null,null,null,null,null,"other renewable alcohol blend (specify)"]
[null,null,"corresponding to the row number for each shipment.",null,null,null,null,null,null,null,null,null,null,null,null,null,null,null,"100% bio-based diesel"]
[null,"4.","For the optional column \"Description of Transaction\", additional information can be provided related to the purchase of the renewable fuels.",null,null,null,null,null,null,null,null,null,null,null,null,null,null,null,"B2 blend"]
[null,null,null,null,null,null,null,null,null,null,null,null,null,null,null,null,null,null,"other bio-based diesel blend (specify)"]
[]
[null,null,"Shipment number (provide purchase order number or invoice number, etc.)",null,"Legal name of the renewable fuel provider who provided the renewable fuel or renewable-blended fuel",null,"Address of renewable fuel provider","Volume of renewable fuel received (litres)","Type of renewable fuel (qualifying renewable alcohol or qualifying bio-based diesel)",null,"Date shipment was received (mmm dd, yyyy)","Validation reference number",null,"Renewable Fuel Provider Declaration. Supporting documentation submitted?","Blend proportion\n(if applicable)","Description of Transaction (optional)"]
[]
[null,1,null,null,null,null,null,null,"choose type…",null,null,null,null,"choose yes or no…"]
[]
[]
[null,"Section 5"]

{"sheet":"Configuration","index":6,"n_rows":119,"n_cols":2,"rows_kept":119,"cut":false,"hidden":true,"merged":[]}
[]
[null,"Validation Reference Numbers"]
[]
[null,"choose from list…"]
[null,"A-US-5-72-01-24"]
[null,"A-US-5-73-01-24"]
[null,"A-US-5-74-01-24"]
[null,"A-US-5-75-01-24"]
[null,"A-US-5-76-01-24"]
[null,"A-US-5-77-01-24"]
[null,"A-US-5-78-01-24"]
[null,"A-CA-5-79-01-24"]
[null,"A-CA-5-80-01-24"]
[null,"A-US-5-81-01-24"]
[null,"A-US-5-82-01-24"]
[null,"D-US-5-83-01-24"]
[null,"A-US-5-84-01-24"]
[null,"A-US-5-85-01-24"]
[null,"D-US-5-86-10-23"]
[null,"A-CA-5-87-01-24"]
[null,"D-US-5-88-01-24"]
[null,"D-US-5-89-01-24"]
[null,"D-US-5-90-01-24"]
[null,"D-AR-5-91-01-24"]
[null,"A-US-5-92-01-24"]
[null,"A-US-5-93-01-24"]
[null,"A-US-5-94-01-24"]
[null,"A-US-5-95-01-24"]
[null,"D-CA-5-96-01-24"]
[null,"D-US-5-97-01-24"]
[null,"D-US-5-98-01-24"]
[null,"D-US-5-99-01-24"]
[null,"D-US-6-00-01-24"]
[null,"D-US-6-01-01-24"]
[null,"D-US-6-02-01-24"]
[null,"D-US-6-03-01-24"]
[null,"D-US-6-04-01-24"]
[null,"D-US-6-05-01-24"]
[null,"D-US-6-06-01-24"]
[null,"D-US-6-07-01-24"]
[null,"D-US-6-08-01-24"]
[null,"D-US-6-09-01-24"]
[null,"D-US-6-10-01-24"]
[null,"D-US-6-11-01-24"]
[null,"D-US-6-12-01-24"]
[null,"A-US-6-13-01-24"]
[null,"A-US-6-14-01-24"]
[null,"D-US-6-15-01-24"]
[null,"A-US-6-16-01-24"]
[null,"A-US-6-17-01-24"]
[null,"A-US-6-18-01-24"]
[null,"A-US-6-19-01-24"]
[null,"A-US-6-20-01-24"]
[null,"A-US-6-21-01-24"]
[null,"A-US-6-22-01-24"]
[null,"A-CA-6-23-01-24"]
[null,"A-US-6-24-01-24"]
[null,"A-US-6-25-01-24"]
[null,"D-US-6-26-01-24"]
[null,"D-US-6-27-01-24"]
[null,"D-US-6-28-03-24"]
[null,"D-US-6-29-01-24"]
[null,"A-US-6-30-01-24"]
[null,"A-CA-6-31-01-24"]
[null,"D-US-6-32-01-24"]
[null,"D-US-6-33-01-24"]
[null,"D-US-6-34-01-24"]
[null,"D-US-6-35-01-24"]
[null,"A-US-6-36-09-24"]
[null,"D-CA-6-37-09-24"]
[null,"A-US-6-38-01-25"]
[null,"A-US-6-39-01-25"]
[null,"A-US-6-40-01-25"]
[null,"A-CA-6-41-01-25"]
[null,"A-CA-6-42-01-25"]
[null,"D-US-6-43-01-25"]
[null,"A-US-6-44-01-25"]
[null,"A-US-6-45-01-25"]
[null,"A-US-6-46-01-25"]
[null,"A-CA-6-47-01-25"]
[null,"D-AR-6-48-01-25"]
[null,"A-US-6-49-01-25"]
[null,"D-US-6-50-01-25"]
[null,"A-US-6-51-01-25"]
[null,"A-US-6-52-01-25"]
[null,"D-US-6-53-01-25"]
[null,"A-US-6-54-01-25"]
[null,"A-US-6-55-01-25"]
[null,"A-US-6-56-01-25"]
[null,"D-CA-6-57-01-25"]
[null,"A-US-6-58-01-25"]
[null,"D-US-6-59-01-25"]
[null,"D-US-6-60-01-25"]
[null,"A-US-6-61-01-25"]
[null,"A-US-6-62-01-25"]
[null,"D-US-6-63-01-25"]
[null,"D-US-6-64-01-25"]
[null,"D-US-6-65-01-25"]
[null,"D-US-6-66-01-25"]
[null,"D-US-6-67-01-25"]
[null,"D-US-6-68-01-25"]
[null,"D-US-6-69-01-25"]
[null,"D-CA-6-70-01-25"]
[null,"D-US-6-71-01-25"]
[null,"A-US-6-72-01-25"]
[null,"A-US-6-73-01-25"]
[null,"A-US-6-74-01-25"]
[null,"A-US-6-75-01-25"]
[null,"A-US-6-76-01-25"]
[null,"A-US-6-77-02-25"]
[null,"A-CA-6-78-01-25"]
[null,"D-CA-6-79-03-25"]
[null,"A-US-6-80-01-25"]
[null,"A-US-6-81-01-25"]
[null,"D-US-6-82-01-25"]
[null,"D-US-6-83-01-25"]
[null,"D-US-6-84-01-25"]
[null,"D-US-6-85-01-25"]
[null,"D-US-6-86-01-25"]

{"sheet":"Fuel Provider CR","index":7,"n_rows":42,"n_cols":22,"rows_kept":42,"cut":false,"hidden":true,"merged":[[38,2,38,3],[38,4,38,5],[38,7,38,8],[38,11,38,12],[26,2,26,3],[26,7,26,8],[37,2,37,3],[37,4,37,5],[37,7,37,8],[37,11,37,12],[26,4,26,5],[16,9,16,10],[17,5,17,6],[17,9,17,10],[19,5,19,6],[25,2,25,3],[25,7,25,8],[25,4,25,5],[13,2,13,3],[13,5,13,6],[13,9,13,10],[14,9,14,10],[15,2,15,3],[15,5,15,6],[15,9,15,10]]}
[]
[null,"Renewable Fuel Provider Compliance Report"]
[null,"Section 12 of the Renewable Fuels Standard Regulation"]
[null,"For Compliance Period: ",null,{"$f":"Submission!D9","v":0}]
[]
[null,"Instructions: 1.","Complete the yellow cells in Sections 1-3 below."]
[null,"2.","For your information, references to the applicable sections of the Regulation are provided in the comments for each section of this form. "]
[null,"3.","Once complete, save this form as an .xlsm file (Microsoft Excel Macro-Enabled Workbook file) and submit it as indicated in the Instructions tab."]
[]
[]
[null,"Section 1- Renewable Fuel Provider Information"]
[]
[null,null,"Date Submitted (mmm dd, yyyy)",null,null,"Legal Name of Renewable Fuel Provider"]
[null,null,{"$f":"'Certification FP'!D31","v":"00:00:00"},null,null,{"$f":"'Certification FP'!B11","v":0}]
[null,null,null,null,null,"Contact Name"]
[null,null,null,null,null,null,null,null,null,null,null,null,null,null,null,null,null,null,null,"choose yes or no…"]
[null,null,null,null,null,"Contact Phone Number",null,null,null,null,null,null,null,null,null,null,null,null,null,"no"]
[null,null,null,null,null,null,null,null,null,null,null,null,null,null,null,null,null,null,null,"yes"]
[null,null,null,null,null,"Contact Email"]
[]
[]
[null,null,null,null,null,null,null,null,null,null,null,null,null,null,null,null,null,null,null,"choose type…"]
[null,"Section 2- Validations",null,null,null,null,null,null,null,null,null,null,null,null,null,null,null,null,null,"qualifying bio-based diesel"]
[null,"Instructions: 1.","Please attach copies of all relevant validations that were approved in the compliance period.",null,null,null,null,null,null,null,null,null,null,null,null,null,null,null,null,"qualifying renewable alcohol"]
[null,"2.","For each validation, please summarize the information in the below table (insert row for each validation). Please compile and label the supporting documentation in numbered bundles corresponding to the validation row number."]
[null,null,"Type of renewable fuel ",null,"Validation reference number",null,"Validation expiry date (mmm dd, yyyy)","Validation attached (required)"]
[null,1,"choose type…",null,null,null,null,"choose yes or no…"]
[]
[null,null,null,null,null,null,null,null,null,null,null,null,null,null,null,null,null,null,null,"choose type…"]
[null,"Section 3- Greenhouse Gas Emission Threshold Compliance",null,null,null,null,null,null,null,null,null,null,null,null,null,null,null,null,null,"100% renewable alcohol",null," "]
[null,"Instructions: 1.","For renewable fuel, including renewable fuel contained in renewable-blended fuel, that the Renewable Fuel Provider sold or allocated in the compliance period, please complete the following section",null,null,null,null,null,null,null,null,null,null,null,null,null,null,null,null,"E5 blend",null," "]
[null,null,"(use a separate row for each shipment delivered).",null,null,null,null,null,null,null,null,null,null,null,null,null,null,null,null,"other renewable alcohol blend"]
[null,"2.","For any \"other blend\" options chosen as the type of fuel in the \"Type of renewable fuel\" column, please specify the percentage of renewable fuel in the blend in the \"Blend proportion\" column.",null,null,null,null,null,null,null,null,null,null,null,null,null,null,null,null,"100% bio-based diesel"]
[null,"3.","In the \"Copy of Renewable Fuel Provider Declaration\" column, please indicate whether transaction records or other documentation (to confirm that the renewable fuel was produced in a manner that is consistent with the processes ",null,null,null,null,null,null,null,null,null,null,null,null,null,null,null,null,"B2 blend"]
[null,null,"and feedstocks set out in the validation referred to in the \"Validation reference number\" column) are attached to the report. Please compile and label the supporting documentation in numbered bundles corresponding",null,null,null,null,null,null,null,null,null,null,null,null,null,null,null,null,"other bio-based diesel blend"]
[null,null,"to the row number for each shipment."]
[null,"4.","For optional column \"Description of Transaction\", additional information can be provided related to the sale of the renewable fuels to customers."]
[null,null,"Shipment number (provide purchase order number or invoice number, etc.)",null,"Legal name of the person to whom the renewable fuel or renewable-blended fuel was sold or allocated",null,"Address of person to whom the renewable fuel or renewable-blended fuel was sold or allocated","Volume of renewable fuel sold or allocated (litres)",null,"Type of renewable fuel (qualifying renewable alcohol or qualifying bio-based diesel)","Date shipment was received by fuel supplier or approved contributor (mmm dd, yyyy)","Validation reference number",null,"Copy of Renewable Fuel Provider Declaration. Supporting documentation submitted?","Blend proportion\n(if applicable)","Description of Transaction (optional)",null,null,null,null,null," "]
[null,1,null,null,null,null,null,null,null,"choose type…",null,null,null,"choose yes or no…",null,null,null,null,null,null,null," "]
[]
[]
[null,"Section 4 - Please do not delete as it is required for the macro to work properly"]

{"sheet":"Approved Contributor CR","index":8,"n_rows":46,"n_cols":22,"rows_kept":46,"cut":false,"hidden":true,"merged":[[13,2,13,3],[13,5,13,6],[15,2,15,3],[15,5,15,6],[28,2,28,3],[28,6,28,7],[17,5,17,6],[19,5,19,6],[29,6,29,7],[41,2,41,3],[41,4,41,5],[41,6,41,7],[42,11,42,12],[42,2,42,3],[42,4,42,5],[42,6,42,7],[41,11,41,12],[29,2,29,3]]}
[]
[null,"Approved Contributor Compliance Report"]
[null,"Section 11 of the Renewable Fuels Standard Regulation"]
[null,"For Compliance Period: ",null,{"$f":"Submission!D9","v":0}]
[]
[null,"Instructions: 1.","Complete the yellow cells in Sections 1-3 below."]
[null,"2.","For your information, references to the applicable sections of the Regulation are provided in the comments for each section of this form. "]
[null,"3.","Once complete, save this form as an .xlsm file (Microsoft Excel Macro-Enabled Workbook file) and submit it as indicated in the Instructions tab."]
[]
[]
[null,"Section 1- Approved Contributor Information"]
[]
[null,null,"Date Submitted (mmm dd, yyyy)",null,null,"Legal Name of Approved Contributor"]
[null,null,{"$f":"'Certification AC'!D31","v":"00:00:00"},null,null,{"$f":"'Certification AC'!B11","v":"00:00:00"},null,null,"Has the approved contributor been approved "]
[null,null,null,null,null,"Contact Name",null,null,"by the Director for the purposes of the"]
[null,null,null,null,null,null,null,null,"Renewable Fuels Standard Regulation?"]
[null,null,null,null,null,"Contact Phone Number"]
[null,null,null,null,null,null,null,null,"Is the approval letter attached?"]
[null,null,null,null,null,"Contact Email",null,null,"choose yes or no…"]
[]
[]
[null,null,null,null,null,null,null,null,null,null,null,null,null,null,null,null,null,null,null,"choose yes or no…"]
[null,"Section 2- Notional Transfers",null,null,null,null,null,null,null,null,null,null,null,null,null,null,null,null,null,"no",null," "]
[null,"Transfers OUT",null,null,null,null,null,null,null,null,null,null,null,null,null,null,null,null,null,"yes"]
[null,"Instructions: 1.",{"$f":"\"For notional transfers of renewable fuel provided to a Fuel Supplier on or before March 31, \" & D4+1 & \" please complete the following (use a separate row for each transaction).\"","v":"For notional transfers of renewable fuel provided to a Fuel Supplier on or before March 31, 1 please complete the following (use a separate row for each transaction)."},null,null,null,null,null,null,null,null,null,null,null,null,null,null,null,null,null,null," "]
[null,"2.","Please include a copy of any transaction records for each notional transfer listed. "]
[null,null,null,null,null,null,null,null,null,null,null,null,null,null,null,null,null,null,null,"choose type…"]
[null,null,null,null,null,null,null,null,null,null,null,null,null,null,null,null,null,null,null,"qualifying bio-based diesel"]
[null,null,"Legal name of the fuel supplier who received the notional transfer",null,"Address of fuel supplier","Volume of renewable fuel notionally transferred (litres)","Type of renewable fuel (qualifying renewable alcohol or qualifying bio-based diesel)",null,"Date of notional transfer (mmm dd, yyyy)","Validation Reference Number",null,null,null,null,null,null,null,null,null,"qualifying renewable alcohol"]
[null,1,null,null,null,null,"choose type…"]
[]
[]
[null,null,null,null,null,null,null,null,null,null,null,null,null,null,null,null,null,null,null,"choose type…"]
[null,"Section 3- Greenhouse Gas Emission Threshold Compliance",null,null,null,null,null,null,null,null,null,null,null,null,null,null,null,null,null,"100% renewable alcohol",null," "]
[null,"Instructions: 1.","For renewable fuel, including renewable fuel contained in renewable-blended fuel that the Approved Contributor received and placed in the Alberta market in the compliance period, please complete the following section",null,null,null,null,null,null,null,null,null,null,null,null,null,null,null,null,"E5 blend",null," "]
[null,null,"(use a separate row for each shipment received).",null,null,null,null,null,null,null,null,null,null,null,null,null,null,null,null,"other renewable alcohol blend"]
[null,"2.","For any \"other blend\" options chosen as the fuel type in the \"Type of renewable fuel\" column, please specify the percentage of renewable fuel in the blend in the \"Blend proportion\" column.",null,null,null,null,null,null,null,null,null,null,null,null,null,null,null,null,"100% bio-based diesel"]
[null,"3.","In the \"Renewable Fuel Provider Declaration\" column please indicate whether transaction records or other documentation (to confirm that the renewable fuel was produced in a manner that is consistent with the procesesses ",null,null,null,null,null,null,null,null,null,null,null,null,null,null,null,null,"B2 blend"]
[null,null,"and feedstocks set out in the validation referred to in the \"Validation reference number\" column) are attached to the report. Please compile and label the supporting documentation in numbered bundles corresponding",null,null,null,null,null,null,null,null,null,null,null,null,null,null,null,null,"other bio-based diesel blend"]
[null,null,"to the row number for each shipment."]
[null,"4.","For the optional column \"Description of Transaction\", additional information can be provided related to the purchase of the renewable fuels."]
[null,null,"Shipment number (provide purchase order number or invoice number, etc.)",null,"Legal name of the renewable fuel provider who provided the renewable fuel or renewable-blended fuel",null,"Address of renewable fuel provider",null,"Volume of renewable fuel sold or allocated (litres)","Type of renewable fuel (qualifying renewable alcohol or bio-based renewable diesel)","Date shipment was received (mmm dd, yyyy)","Validation reference number",null,"Renewable Fuel Provider Declaration. Supporting documentation attached?","Blend proportion\n(if applicable)","Description of Transaction (optional)"]
[null,1,null,null,null,null,null,null,null,"choose type…",null,null,null,"choose yes or no…"]
[]
[]
[null,"Section 4 - Please do not remove, it is required by the macro"]

{"sheet":"Track Changes","index":9,"n_rows":4,"n_cols":4,"rows_kept":4,"cut":false,"hidden":true,"merged":[]}
["Date",null,"Who","Comment"]
["2016-03-07",15.1,"Gustavo","it was unprotected the three entry tabs."]
["2016-03-07",15.1,"Gustavo","it was unhidden the last section of the entry tabs to avoid problem with the macros."]
["2016-03-11",15.2,"Gustavo","It was corrected the date in Notional transfert for fuel suppliers and approved contributor tabs."]